[Event "*** Titled Tuesday Blitz"]
[Site "Chess.com"]
[Date "2021.03.09"]
[Round "2"]
[White "Mikasinski"]
[Black "Fore_Man"]
[Result "1-0"]
[WhiteElo "2461"]
[BlackElo "2229"]
[TimeControl "180+1"]
[EndTime "10:20:17 PST"]
[Termination "Mikasinski won by checkmate"]

1. e4 {[%clk 0:03:00.9]} 1... e6 {[%clk 0:02:59.5]} 2. d4 {[%clk 0:03:00.9]}
2... d5 {[%clk 0:02:59.9]} 3. Nc3 {[%clk 0:03:00.6]} 3... Nf6 {[%clk 0:02:59]}
4. Bg5 {[%clk 0:03:00.2]} 4... dxe4 {[%clk 0:02:58.4]} 5. Nxe4 {[%clk
0:03:00.3]} 5... Nbd7 {[%clk 0:02:58.8]} 6. Nf3 {[%clk 0:03:00.2]} 6... h6
{[%clk 0:02:57.4]} 7. Nxf6+ {[%clk 0:03:00]} 7... Nxf6 {[%clk 0:02:55.1]} 8. Bh4
{[%clk 0:02:56]} 8... Be7 {[%clk 0:02:50.8]} 9. Bc4 {[%clk 0:02:55.5]} 9... Bd7
{[%clk 0:02:46.7]} 10. Ne5 {[%clk 0:02:51.2]} 10... Bc6 {[%clk 0:02:39.7]} 11.
Nxc6 {[%clk 0:02:50.7]} 11... bxc6 {[%clk 0:02:40.6]} 12. O-O {[%clk 0:02:46.2]}
12... Rb8 {[%clk 0:02:34.1]} 13. Bb3 {[%clk 0:02:42.5]} 13... O-O {[%clk
0:02:22.2]} 14. c3 {[%clk 0:02:39.8]} 14... c5 {[%clk 0:02:21.2]} 15. dxc5
{[%clk 0:02:38]} 15... Bxc5 {[%clk 0:02:22.1]} 16. Qxd8 {[%clk 0:02:36.6]} 16...
Rfxd8 {[%clk 0:02:21.1]} 17. Rad1 {[%clk 0:02:37]} 17... g5 {[%clk 0:02:06.9]}
18. Bg3 {[%clk 0:02:36.2]} 18... Bd6 {[%clk 0:02:07.5]} 19. Rfe1 {[%clk
0:02:24]} 19... Bxg3 {[%clk 0:02:05.5]} 20. hxg3 {[%clk 0:02:19.9]} 20... Rd6
{[%clk 0:01:58.1]} 21. Kf1 {[%clk 0:02:16.7]} 21... Rbd8 {[%clk 0:01:57.1]} 22.
Ke2 {[%clk 0:02:13.5]} 22... Rxd1 {[%clk 0:01:54.6]} 23. Rxd1 {[%clk 0:02:11.9]}
23... Rxd1 {[%clk 0:01:53.4]} 24. Bxd1 {[%clk 0:02:12.4]} 24... Ne8 {[%clk
0:01:37.2]} 25. Kd3 {[%clk 0:02:09.2]} 25... Nd6 {[%clk 0:01:36.9]} 26. Kd4
{[%clk 0:02:08.4]} 26... Kg7 {[%clk 0:01:33]} 27. Kc5 {[%clk 0:02:07.9]} 27...
Ne4+ {[%clk 0:01:31.6]} 28. Kc6 {[%clk 0:02:08.2]} 28... Nxf2 {[%clk 0:01:31.9]}
29. Be2 {[%clk 0:01:54.3]} 29... e5 {[%clk 0:01:27.6]} 30. a4 {[%clk 0:01:46.3]}
30... e4 {[%clk 0:01:26.4]} 31. a5 {[%clk 0:01:45.3]} 31... e3 {[%clk
0:01:11.9]} 32. a6 {[%clk 0:01:42.1]} 32... Ne4 {[%clk 0:01:11]} 33. Kb7 {[%clk
0:01:32.3]} 33... Nxg3 {[%clk 0:00:28]} 34. Bd3 {[%clk 0:01:31.9]} 34... Ne4
{[%clk 0:00:23.4]} 35. Kxa7 {[%clk 0:01:27.4]} 35... Nc5 {[%clk 0:00:21.4]} 36.
Be2 {[%clk 0:01:20.3]} 36... f5 {[%clk 0:00:16.3]} 37. Kb8 {[%clk 0:01:11.6]}
37... Nxa6+ {[%clk 0:00:14.9]} 38. Bxa6 {[%clk 0:01:12.5]} 38... g4 {[%clk
0:00:13]} 39. Be2 {[%clk 0:01:12.1]} 39... h5 {[%clk 0:00:13.3]} 40. Kxc7 {[%clk
0:00:54.4]} 40... h4 {[%clk 0:00:13.7]} 41. b4 {[%clk 0:00:19.1]} 41... h3
{[%clk 0:00:14]} 42. gxh3 {[%clk 0:00:15.2]} 42... g3 {[%clk 0:00:14.5]} 43. b5
{[%clk 0:00:12.1]} 43... g2 {[%clk 0:00:14.4]} 44. b6 {[%clk 0:00:12]} 44...
g1=Q {[%clk 0:00:14.4]} 45. b7 {[%clk 0:00:12.6]} 45... Qg3+ {[%clk 0:00:11.5]}
46. Kc8 {[%clk 0:00:11.1]} 46... Qxh3 {[%clk 0:00:05.7]} 47. b8=Q {[%clk
0:00:08.2]} 47... f4+ {[%clk 0:00:06.1]} 48. Kb7 {[%clk 0:00:06.2]} 48... Qg3
{[%clk 0:00:05.4]} 49. Qe5+ {[%clk 0:00:05.6]} 49... Kg6 {[%clk 0:00:05.4]} 50.
Bd3+ {[%clk 0:00:05.5]} 50... Kf7 {[%clk 0:00:04.8]} 51. Qd5+ {[%clk 0:00:04.4]}
51... Kg7 {[%clk 0:00:04.8]} 52. Qe5+ {[%clk 0:00:04.4]} 52... Kf7 {[%clk
0:00:04.9]} 53. Bc4+ {[%clk 0:00:04.8]} 53... Kg6 {[%clk 0:00:05]} 54. Qe8+
{[%clk 0:00:04.8]} 54... Kf6 {[%clk 0:00:04.7]} 55. Qe6+ {[%clk 0:00:04.9]}
55... Kg5 {[%clk 0:00:04.5]} 56. Qg8+ {[%clk 0:00:03.2]} 56... Kh4 {[%clk
0:00:04.4]} 57. Qh7+ {[%clk 0:00:03.2]} 57... Kg5 {[%clk 0:00:03.8]} 58. Qg7+
{[%clk 0:00:02.7]} 58... Kh4 {[%clk 0:00:03.8]} 59. Qh6+ {[%clk 0:00:02.6]}
59... Kg4 {[%clk 0:00:03.2]} 60. Be6+ {[%clk 0:00:03.1]} 60... Kf3 {[%clk
0:00:03.8]} 61. Qh1+ {[%clk 0:00:03.4]} 61... Ke2 {[%clk 0:00:03.8]} 62. Bc4+
{[%clk 0:00:03.1]} 62... Kf2 {[%clk 0:00:04.4]} 63. Qf1# {[%clk 0:00:03.4]} 1-0

[Event "*** Titled Tuesday Blitz"]
[Site "Chess.com"]
[Date "2021.03.09"]
[Round "2"]
[White "superjem123"]
[Black "Hypercar"]
[Result "1-0"]
[WhiteElo "2747"]
[BlackElo "2504"]
[TimeControl "180+1"]
[EndTime "10:20:21 PST"]
[Termination "superjem123 won by resignation"]

1. c4 {[%clk 0:03:00.9]} 1... c6 {[%clk 0:02:37.3]} 2. Nf3 {[%clk 0:02:58.5]}
2... d5 {[%clk 0:02:38.2]} 3. g3 {[%clk 0:02:59.4]} 3... Nf6 {[%clk 0:02:27.3]}
4. Bg2 {[%clk 0:02:59.7]} 4... g6 {[%clk 0:02:27.4]} 5. O-O {[%clk 0:03:00.6]}
5... Bg7 {[%clk 0:02:28]} 6. b3 {[%clk 0:03:01]} 6... Ne4 {[%clk 0:02:25.7]} 7.
d4 {[%clk 0:03:00.7]} 7... O-O {[%clk 0:02:23.8]} 8. Bb2 {[%clk 0:02:58.5]} 8...
Nd7 {[%clk 0:02:23.1]} 9. Nbd2 {[%clk 0:02:51.9]} 9... Ndf6 {[%clk 0:02:18]} 10.
Ne5 {[%clk 0:02:52.2]} 10... Bf5 {[%clk 0:02:14.6]} 11. Rc1 {[%clk 0:02:45.8]}
11... Qa5 {[%clk 0:02:10.4]} 12. Nxe4 {[%clk 0:02:45.9]} 12... Nxe4 {[%clk
0:02:05.2]} 13. a3 {[%clk 0:02:45.1]} 13... Rad8 {[%clk 0:01:57.6]} 14. b4
{[%clk 0:02:41.9]} 14... Qb6 {[%clk 0:01:57.1]} 15. cxd5 {[%clk 0:02:31.4]}
15... cxd5 {[%clk 0:01:51.8]} 16. e3 {[%clk 0:02:24.3]} 16... Rc8 {[%clk
0:01:42.6]} 17. Qe2 {[%clk 0:02:23.4]} 17... h5 {[%clk 0:01:32.5]} 18. Nd3
{[%clk 0:02:21.8]} 18... Qa6 {[%clk 0:01:26.1]} 19. Bf3 {[%clk 0:02:16]} 19...
Ng5 {[%clk 0:01:16.5]} 20. Nc5 {[%clk 0:02:09.4]} 20... Nxf3+ {[%clk 0:01:05.3]}
21. Qxf3 {[%clk 0:02:10.3]} 21... Qc6 {[%clk 0:01:03.1]} 22. Rc3 {[%clk
0:01:54.6]} 22... b6 {[%clk 0:01:02.5]} 23. Nb3 {[%clk 0:01:49.9]} 23... Qe6
{[%clk 0:01:01.7]} 24. Rfc1 {[%clk 0:01:48.2]} 24... Rxc3 {[%clk 0:00:58.3]} 25.
Rxc3 {[%clk 0:01:49.1]} 25... Be4 {[%clk 0:00:57.8]} 26. Qe2 {[%clk 0:01:48.7]}
26... Qf5 {[%clk 0:00:54.6]} 27. Nd2 {[%clk 0:01:47.6]} 27... Qe6 {[%clk
0:00:45.3]} 28. Nxe4 {[%clk 0:01:44.8]} 28... Qxe4 {[%clk 0:00:43]} 29. Qc2
{[%clk 0:01:43.5]} 29... Qxc2 {[%clk 0:00:22.7]} 30. Rxc2 {[%clk 0:01:44.4]}
30... Ra8 {[%clk 0:00:21.1]} 31. Rc7 {[%clk 0:01:43.7]} 31... Kf8 {[%clk
0:00:21.6]} 32. a4 {[%clk 0:01:40.9]} 32... Bf6 {[%clk 0:00:16.7]} 33. Ba3
{[%clk 0:01:35.7]} 33... Ke8 {[%clk 0:00:17]} 34. a5 {[%clk 0:01:24]} 34... Kd8
{[%clk 0:00:15.9]} 35. Rb7 {[%clk 0:01:24.2]} 35... bxa5 {[%clk 0:00:12.3]} 36.
bxa5 {[%clk 0:01:25.1]} 36... a6 {[%clk 0:00:12.9]} 37. Bc5 {[%clk 0:01:13.5]}
37... Kc8 {[%clk 0:00:12.6]} 38. Rb6 {[%clk 0:01:13.5]} 38... Kc7 {[%clk
0:00:10.5]} 39. Kg2 {[%clk 0:01:09.7]} 39... e6 {[%clk 0:00:10.7]} 40. Bd6+
{[%clk 0:01:03.4]} 40... Kd7 {[%clk 0:00:09.5]} 41. Bf4 {[%clk 0:01:03.6]} 41...
Ra7 {[%clk 0:00:04.9]} 42. Bb8 {[%clk 0:00:56.9]} 42... Ra8 {[%clk 0:00:04.2]}
43. Rb7+ {[%clk 0:00:54]} 43... Ke8 {[%clk 0:00:02.9]} 44. Bc7 {[%clk
0:00:43.9]} 44... Be7 {[%clk 0:00:03.5]} 45. Bb6 {[%clk 0:00:41.9]} 45... Bd6
{[%clk 0:00:03.8]} 46. h4 {[%clk 0:00:38]} 46... Be7 {[%clk 0:00:03.9]} 47. Kf3
{[%clk 0:00:37.5]} 47... Bd8 {[%clk 0:00:04.4]} 48. Bxd8 {[%clk 0:00:36.3]}
48... Rxd8 {[%clk 0:00:05.3]} 49. Rb6 {[%clk 0:00:17.5]} 49... Ke7 {[%clk
0:00:02.8]} 50. Rxa6 {[%clk 0:00:16.8]} 50... Kf6 {[%clk 0:00:03]} 51. Ra7
{[%clk 0:00:15.2]} 51... Rb8 {[%clk 0:00:02.7]} 52. a6 {[%clk 0:00:06]} 52...
Rb2 {[%clk 0:00:03.2]} 53. Rb7 {[%clk 0:00:05.6]} 53... Ra2 {[%clk 0:00:03.3]}
54. a7 {[%clk 0:00:06.2]} 54... Kg7 {[%clk 0:00:03.3]} 55. e4 {[%clk 0:00:05.8]}
55... Ra3+ {[%clk 0:00:03.2]} 56. Kf4 {[%clk 0:00:06]} 56... dxe4 {[%clk
0:00:03.3]} 57. Kxe4 {[%clk 0:00:06.3]} 57... Ra2 {[%clk 0:00:03.8]} 58. Ke5
{[%clk 0:00:06]} 58... Re2+ {[%clk 0:00:03.4]} 59. Kd6 {[%clk 0:00:06.3]} 59...
Ra2 {[%clk 0:00:02.5]} 60. Kc7 {[%clk 0:00:06.6]} 60... Kf6 {[%clk 0:00:01.8]}
61. Kb8 {[%clk 0:00:07.1]} 61... Rxf2 {[%clk 0:00:02.5]} 62. a8=Q {[%clk
0:00:07.2]} 62... Rf3 {[%clk 0:00:03.4]} 63. Rxf7+ {[%clk 0:00:06]} 63... Kxf7
{[%clk 0:00:03.8]} 64. Qxf3+ {[%clk 0:00:06.9]} 64... Ke7 {[%clk 0:00:04.7]} 65.
Kc7 {[%clk 0:00:07.5]} 1-0

[Event "*** Titled Tuesday Blitz"]
[Site "Chess.com"]
[Date "2021.03.09"]
[Round "2"]
[White "lagedema"]
[Black "moro182"]
[Result "1/2-1/2"]
[WhiteElo "2493"]
[BlackElo "2682"]
[TimeControl "180+1"]
[EndTime "10:20:26 PST"]
[Termination "Game drawn by repetition"]

1. d4 {[%clk 0:03:00.9]} 1... g6 {[%clk 0:02:59]} 2. e4 {[%clk 0:02:59.7]} 2...
Bg7 {[%clk 0:02:59.1]} 3. Nf3 {[%clk 0:02:59.6]} 3... d6 {[%clk 0:02:59.2]} 4.
h3 {[%clk 0:02:59.3]} 4... Nf6 {[%clk 0:02:58.3]} 5. Bd3 {[%clk 0:02:58.8]} 5...
a6 {[%clk 0:02:51.2]} 6. O-O {[%clk 0:02:54.1]} 6... O-O {[%clk 0:02:43.6]} 7.
a4 {[%clk 0:02:49.4]} 7... Nc6 {[%clk 0:02:43]} 8. c3 {[%clk 0:02:46.7]} 8... e5
{[%clk 0:02:40.4]} 9. Re1 {[%clk 0:02:36.6]} 9... h6 {[%clk 0:02:37.9]} 10. d5
{[%clk 0:02:29.7]} 10... Ne7 {[%clk 0:02:37.2]} 11. a5 {[%clk 0:01:59.6]} 11...
g5 {[%clk 0:02:34.2]} 12. c4 {[%clk 0:01:57.6]} 12... Ng6 {[%clk 0:02:32.9]} 13.
Nh2 {[%clk 0:01:47.1]} 13... Nf4 {[%clk 0:02:24.9]} 14. Bf1 {[%clk 0:01:45.2]}
14... Kh8 {[%clk 0:02:11.5]} 15. Nc3 {[%clk 0:01:40.4]} 15... Rg8 {[%clk
0:02:10.6]} 16. g4 {[%clk 0:01:35.5]} 16... h5 {[%clk 0:02:07.1]} 17. f3 {[%clk
0:01:35.2]} 17... hxg4 {[%clk 0:02:03.7]} 18. hxg4 {[%clk 0:01:33.4]} 18... Kh7
{[%clk 0:01:47.1]} 19. Bg2 {[%clk 0:01:29.3]} 19... Rh8 {[%clk 0:01:46.7]} 20.
Nf1 {[%clk 0:01:28.9]} 20... c5 {[%clk 0:01:30.8]} 21. Ng3 {[%clk 0:01:22.4]}
21... b5 {[%clk 0:01:30.5]} 22. axb6 {[%clk 0:01:20.1]} 22... Qxb6 {[%clk
0:01:29.9]} 23. Bf1 {[%clk 0:01:09]} 23... Bd7 {[%clk 0:01:23.9]} 24. Nf5 {[%clk
0:01:08.1]} 24... Bf8 {[%clk 0:01:11.5]} 25. Ne2 {[%clk 0:00:53.1]} 25... Ng8
{[%clk 0:01:07.1]} 26. Nxf4 {[%clk 0:00:43.4]} 26... gxf4 {[%clk 0:01:06.7]} 27.
Re2 {[%clk 0:00:39.4]} 27... Ne7 {[%clk 0:01:06.6]} 28. Rh2+ {[%clk 0:00:38.8]}
28... Kg8 {[%clk 0:01:06.8]} 29. Rxh8+ {[%clk 0:00:38.3]} 29... Kxh8 {[%clk
0:01:07.7]} 30. Qc2 {[%clk 0:00:36.6]} 30... Nxf5 {[%clk 0:00:56.5]} 31. exf5
{[%clk 0:00:37.5]} 31... Be7 {[%clk 0:00:55.1]} 32. Bd2 {[%clk 0:00:31.2]} 32...
Kg7 {[%clk 0:00:52.9]} 33. Ba5 {[%clk 0:00:27.2]} 33... Qb7 {[%clk 0:00:50.6]}
34. Bd3 {[%clk 0:00:22.5]} 34... Rh8 {[%clk 0:00:43.6]} 35. Kg2 {[%clk
0:00:21.1]} 35... Qb8 {[%clk 0:00:39.5]} 36. Rh1 {[%clk 0:00:19.8]} 36... Bf6
{[%clk 0:00:36]} 37. Bc3 {[%clk 0:00:15.7]} 37... Rxh1 {[%clk 0:00:29.1]} 38.
Kxh1 {[%clk 0:00:16.6]} 38... Qh8+ {[%clk 0:00:29.3]} 39. Qh2 {[%clk 0:00:15.3]}
39... Qxh2+ {[%clk 0:00:28.8]} 40. Kxh2 {[%clk 0:00:15.3]} 40... Ba4 {[%clk
0:00:29.2]} 41. Kg2 {[%clk 0:00:14.8]} 41... Bb3 {[%clk 0:00:28.8]} 42. Be2
{[%clk 0:00:14.1]} 42... Kh6 {[%clk 0:00:27.5]} 43. Kh3 {[%clk 0:00:14]} 43...
Bd8 {[%clk 0:00:19.5]} 44. Bd3 {[%clk 0:00:12.7]} 44... f6 {[%clk 0:00:19.3]}
45. Kg2 {[%clk 0:00:11.7]} 45... a5 {[%clk 0:00:17.3]} 46. Kf2 {[%clk
0:00:11.5]} 46... a4 {[%clk 0:00:16.9]} 47. Kg2 {[%clk 0:00:11.1]} 47... Kg5
{[%clk 0:00:17.3]} 48. Kh3 {[%clk 0:00:09.4]} 48... Bd1 {[%clk 0:00:16]} 49. Kg2
{[%clk 0:00:09.6]} 49... Kh6 {[%clk 0:00:16.2]} 50. Be1 {[%clk 0:00:08.5]} 50...
Kg7 {[%clk 0:00:15.4]} 51. Bc3 {[%clk 0:00:08.8]} 51... Bc7 {[%clk 0:00:15.5]}
52. Kf2 {[%clk 0:00:09.1]} 52... Kh6 {[%clk 0:00:15.2]} 53. Be2 {[%clk
0:00:09.4]} 53... Bc2 {[%clk 0:00:14.6]} 54. Kg2 {[%clk 0:00:08]} 54... Bd8
{[%clk 0:00:14.4]} 55. Kh3 {[%clk 0:00:07]} 55... e4 {[%clk 0:00:12.2]} 56. fxe4
{[%clk 0:00:05.1]} 56... Bxe4 {[%clk 0:00:13.1]} 57. Kh4 {[%clk 0:00:04.5]}
57... f3 {[%clk 0:00:10.3]} 58. Bd2+ {[%clk 0:00:04.5]} 58... Kg7 {[%clk
0:00:09.8]} 59. Bf1 {[%clk 0:00:05.4]} 59... Bc2 {[%clk 0:00:05.9]} 60. Kg3
{[%clk 0:00:05.2]} 60... Bd1 {[%clk 0:00:06.2]} 61. Bd3 {[%clk 0:00:04.5]} 61...
Be7 {[%clk 0:00:06.1]} 62. Kf2 {[%clk 0:00:03.5]} 62... Bf8 {[%clk 0:00:05.3]}
63. Ke1 {[%clk 0:00:01.3]} 63... Bb3 {[%clk 0:00:05.2]} 64. Kf2 {[%clk
0:00:01.7]} 64... Bd1 {[%clk 0:00:05.3]} 65. Ke1 {[%clk 0:00:01.6]} 65... Bb3
{[%clk 0:00:05.5]} 66. Kf2 {[%clk 0:00:02]} 66... Bd1 {[%clk 0:00:05.7]} 1/2-1/2

[Event "*** Titled Tuesday Blitz"]
[Site "Chess.com"]
[Date "2021.03.09"]
[Round "2"]
[White "SHIVACalypso"]
[Black "Iball95"]
[Result "1/2-1/2"]
[WhiteElo "2348"]
[BlackElo "2648"]
[TimeControl "180+1"]
[EndTime "10:20:29 PST"]
[Termination "Game drawn by repetition"]

1. Nf3 {[%clk 0:03:00.9]} 1... g6 {[%clk 0:02:59.6]} 2. c4 {[%clk 0:02:59.9]}
2... c5 {[%clk 0:02:58.1]} 3. g3 {[%clk 0:03:00.8]} 3... Bg7 {[%clk 0:02:57.7]}
4. Bg2 {[%clk 0:03:01.7]} 4... Nf6 {[%clk 0:02:58.1]} 5. O-O {[%clk 0:03:01.6]}
5... O-O {[%clk 0:02:58.6]} 6. Nc3 {[%clk 0:03:01.4]} 6... Nc6 {[%clk
0:02:58.4]} 7. d3 {[%clk 0:03:01.4]} 7... d5 {[%clk 0:02:49.5]} 8. cxd5 {[%clk
0:03:02.3]} 8... Nxd5 {[%clk 0:02:50.4]} 9. Nxd5 {[%clk 0:03:02.5]} 9... Qxd5
{[%clk 0:02:51.3]} 10. Be3 {[%clk 0:03:02.8]} 10... Bxb2 {[%clk 0:02:51.7]} 11.
Rb1 {[%clk 0:03:01.7]} 11... Bf6 {[%clk 0:02:51.2]} 12. Qa4 {[%clk 0:02:50.6]}
12... Qh5 {[%clk 0:02:09.3]} 13. Rfc1 {[%clk 0:02:45.5]} 13... Nd4 {[%clk
0:02:07.2]} 14. Bxd4 {[%clk 0:02:19.9]} 14... cxd4 {[%clk 0:02:08.1]} 15. Rc7
{[%clk 0:02:05.2]} 15... a6 {[%clk 0:01:57.4]} 16. Qc2 {[%clk 0:01:40.5]} 16...
Rb8 {[%clk 0:01:43.1]} 17. Rb6 {[%clk 0:01:03.3]} 17... Qa5 {[%clk 0:01:34.2]}
18. Qb2 {[%clk 0:00:45.1]} 18... Be6 {[%clk 0:01:18.2]} 19. Rcxb7 {[%clk
0:00:39.8]} 19... Rxb7 {[%clk 0:01:19.1]} 20. Rxb7 {[%clk 0:00:40.4]} 20... Rc8
{[%clk 0:00:37.5]} 21. h4 {[%clk 0:00:32.2]} 21... Qxa2 {[%clk 0:00:24.8]} 22.
Qxa2 {[%clk 0:00:28.6]} 22... Bxa2 {[%clk 0:00:25.7]} 23. Ra7 {[%clk 0:00:28.7]}
23... Rc6 {[%clk 0:00:23.6]} 24. Nd2 {[%clk 0:00:14.2]} 24... Rc1+ {[%clk
0:00:15.7]} 25. Nf1 {[%clk 0:00:13.1]} 25... Rc2 {[%clk 0:00:09.9]} 26. Bf3
{[%clk 0:00:13]} 26... Be6 {[%clk 0:00:09.5]} 27. Rxa6 {[%clk 0:00:12.8]} 27...
Bh3 {[%clk 0:00:09.5]} 28. Ra1 {[%clk 0:00:09.9]} 28... h5 {[%clk 0:00:08.6]}
29. Rd1 {[%clk 0:00:07.9]} 29... Kg7 {[%clk 0:00:08.3]} 30. Nd2 {[%clk
0:00:08.3]} 30... e6 {[%clk 0:00:07.6]} 31. Ne4 {[%clk 0:00:08.7]} 31... Be7
{[%clk 0:00:07.6]} 32. Rb1 {[%clk 0:00:07.9]} 32... e5 {[%clk 0:00:07.3]} 33.
Ng5 {[%clk 0:00:07.7]} 33... Bxg5 {[%clk 0:00:06.5]} 34. hxg5 {[%clk 0:00:08.6]}
34... Bg4 {[%clk 0:00:06.7]} 35. Kg2 {[%clk 0:00:08.3]} 35... f5 {[%clk
0:00:05.6]} 36. Rb7+ {[%clk 0:00:07.5]} 36... Kf8 {[%clk 0:00:05.6]} 37. Rb6
{[%clk 0:00:07.1]} 37... Kg7 {[%clk 0:00:04.9]} 38. Rb7+ {[%clk 0:00:06.9]}
38... Kf8 {[%clk 0:00:05.4]} 39. Rb6 {[%clk 0:00:07]} 39... e4 {[%clk
0:00:05.5]} 40. dxe4 {[%clk 0:00:06.4]} 40... fxe4 {[%clk 0:00:05.1]} 41. Bxe4
{[%clk 0:00:06.5]} 41... Rxe2 {[%clk 0:00:05.4]} 42. Bxg6 {[%clk 0:00:06.4]}
42... Re5 {[%clk 0:00:05.6]} 43. Rd6 {[%clk 0:00:06]} 43... Rxg5 {[%clk
0:00:05.9]} 44. Bd3 {[%clk 0:00:06.1]} 44... Rc5 {[%clk 0:00:03]} 45. Rxd4
{[%clk 0:00:06.1]} 45... Kg7 {[%clk 0:00:03.5]} 46. Be4 {[%clk 0:00:06.2]} 46...
Kf6 {[%clk 0:00:03.5]} 47. Bf3 {[%clk 0:00:06.4]} 47... Kg5 {[%clk 0:00:02.9]}
48. Bxg4 {[%clk 0:00:05.2]} 48... hxg4 {[%clk 0:00:03.8]} 49. Rd8 {[%clk
0:00:05.6]} 49... Ra5 {[%clk 0:00:04.1]} 50. Rd4 {[%clk 0:00:05.9]} 50... Rb5
{[%clk 0:00:04.2]} 51. f4+ {[%clk 0:00:05.4]} 51... gxf3+ {[%clk 0:00:03.8]} 52.
Kxf3 {[%clk 0:00:05.6]} 52... Rb3+ {[%clk 0:00:04.7]} 53. Kf2 {[%clk 0:00:06]}
53... Rb5 {[%clk 0:00:05.2]} 54. Rd3 {[%clk 0:00:05.6]} 54... Ra5 {[%clk
0:00:05.6]} 55. Kf3 {[%clk 0:00:06.1]} 55... Rf5+ {[%clk 0:00:06]} 56. Kg2
{[%clk 0:00:06.3]} 56... Ra5 {[%clk 0:00:06.9]} 57. Rf3 {[%clk 0:00:06.5]} 57...
Re5 {[%clk 0:00:07]} 58. Rf2 {[%clk 0:00:06.4]} 58... Ra5 {[%clk 0:00:07.4]} 59.
Rf3 {[%clk 0:00:06.8]} 59... Rb5 {[%clk 0:00:07.7]} 60. Re3 {[%clk 0:00:06.9]}
60... Kg4 {[%clk 0:00:07.4]} 61. Re4+ {[%clk 0:00:06.8]} 61... Kg5 {[%clk
0:00:07.8]} 62. Rc4 {[%clk 0:00:07.1]} 62... Ra5 {[%clk 0:00:08.1]} 63. Kf3
{[%clk 0:00:07]} 63... Rb5 {[%clk 0:00:08.4]} 64. Rc3 {[%clk 0:00:06.8]} 64...
Rf5+ {[%clk 0:00:08.7]} 65. Kg2 {[%clk 0:00:06]} 65... Ra5 {[%clk 0:00:09.6]}
66. Kf3 {[%clk 0:00:06.2]} 66... Rf5+ {[%clk 0:00:09.5]} 67. Kg2 {[%clk
0:00:06.4]} 67... Ra5 {[%clk 0:00:09.5]} 68. Kf3 {[%clk 0:00:06.8]} 68... Rf5+
{[%clk 0:00:09.7]} 1/2-1/2

[Event "*** Titled Tuesday Blitz"]
[Site "Chess.com"]
[Date "2021.03.09"]
[Round "2"]
[White "Aemulus20"]
[Black "Sanan_Sjugirov"]
[Result "1/2-1/2"]
[WhiteElo "2560"]
[BlackElo "2888"]
[TimeControl "180+1"]
[EndTime "10:20:34 PST"]
[Termination "Game drawn by repetition"]

1. e4 {[%clk 0:03:00.9]} 1... c5 {[%clk 0:02:58.4]} 2. Nf3 {[%clk 0:02:59.7]}
2... Nc6 {[%clk 0:02:57.4]} 3. d4 {[%clk 0:03:00.1]} 3... cxd4 {[%clk
0:02:57.5]} 4. Nxd4 {[%clk 0:03:01]} 4... e5 {[%clk 0:02:56]} 5. Nb5 {[%clk
0:03:00.7]} 5... d6 {[%clk 0:02:56.3]} 6. N1c3 {[%clk 0:02:56.6]} 6... a6 {[%clk
0:02:55.6]} 7. Na3 {[%clk 0:02:56.8]} 7... b5 {[%clk 0:02:55.5]} 8. Nd5 {[%clk
0:02:57.1]} 8... Nf6 {[%clk 0:02:55.6]} 9. Bg5 {[%clk 0:02:56.4]} 9... Be7
{[%clk 0:02:55.6]} 10. Bxf6 {[%clk 0:02:56]} 10... Bxf6 {[%clk 0:02:56.1]} 11.
c3 {[%clk 0:02:56.2]} 11... O-O {[%clk 0:02:47]} 12. Nc2 {[%clk 0:02:56]} 12...
g6 {[%clk 0:02:42.8]} 13. a4 {[%clk 0:02:54.8]} 13... Rb8 {[%clk 0:02:40.3]} 14.
axb5 {[%clk 0:02:52]} 14... axb5 {[%clk 0:02:41.2]} 15. g3 {[%clk 0:02:48.7]}
15... Bg7 {[%clk 0:02:39.6]} 16. h4 {[%clk 0:02:35.6]} 16... Be6 {[%clk
0:02:24.4]} 17. Ra6 {[%clk 0:02:08.3]} 17... Ne7 {[%clk 0:02:17.3]} 18. Nxe7+
{[%clk 0:02:01.3]} 18... Qxe7 {[%clk 0:02:18.2]} 19. Qxd6 {[%clk 0:02:01.2]}
19... Qb7 {[%clk 0:01:54]} 20. Qc6 {[%clk 0:01:46.2]} 20... Qxc6 {[%clk
0:01:27.9]} 21. Rxc6 {[%clk 0:01:45.7]} 21... Ra8 {[%clk 0:01:28.8]} 22. Rb6
{[%clk 0:01:20.4]} 22... Bb3 {[%clk 0:00:52.8]} 23. Na3 {[%clk 0:01:13.1]} 23...
Rfd8 {[%clk 0:00:43.5]} 24. Be2 {[%clk 0:01:04.7]} 24... Bf8 {[%clk 0:00:42.5]}
25. Rxb5 {[%clk 0:00:55.7]} 25... Bxa3 {[%clk 0:00:39.4]} 26. Rxb3 {[%clk
0:00:43.6]} 26... Bxb2 {[%clk 0:00:38.6]} 27. O-O {[%clk 0:00:44.1]} 27... Rd2
{[%clk 0:00:36.3]} 28. Bc4 {[%clk 0:00:43.9]} 28... Ra7 {[%clk 0:00:06.8]} 29.
Rb1 {[%clk 0:00:42.9]} 29... Ba3 {[%clk 0:00:06.9]} 30. Rb7 {[%clk 0:00:35]}
30... Bc5 {[%clk 0:00:04.2]} 31. Bxf7+ {[%clk 0:00:22.5]} 31... Kf8 {[%clk
0:00:04]} 32. Rxa7 {[%clk 0:00:22.7]} 32... Bxa7 {[%clk 0:00:04.9]} 33. Bd5
{[%clk 0:00:22.2]} 33... Bxf2+ {[%clk 0:00:03.5]} 34. Kg2 {[%clk 0:00:17.6]}
34... Bc5+ {[%clk 0:00:04]} 35. Kh3 {[%clk 0:00:17.8]} 35... h5 {[%clk
0:00:04.1]} 36. Rf1+ {[%clk 0:00:17.6]} 36... Rf2 {[%clk 0:00:03.1]} 37. Rxf2+
{[%clk 0:00:17.1]} 37... Bxf2 {[%clk 0:00:04]} 38. g4 {[%clk 0:00:17.3]} 38...
Ke7 {[%clk 0:00:03.4]} 39. gxh5 {[%clk 0:00:16.9]} 39... gxh5 {[%clk 0:00:04.3]}
40. Bc6 {[%clk 0:00:16.7]} 40... Be1 {[%clk 0:00:04.1]} 41. c4 {[%clk 0:00:17]}
41... Bf2 {[%clk 0:00:04.6]} 42. Bd5 {[%clk 0:00:17.1]} 42... Bd4 {[%clk
0:00:04.8]} 43. Kg3 {[%clk 0:00:16.9]} 43... Bc3 {[%clk 0:00:04.7]} 44. Bg8
{[%clk 0:00:16.9]} 44... Be1+ {[%clk 0:00:04.7]} 45. Kh3 {[%clk 0:00:17.4]}
45... Bf2 {[%clk 0:00:05]} 46. Bh7 {[%clk 0:00:17.6]} 46... Kf6 {[%clk
0:00:05.4]} 47. Bf5 {[%clk 0:00:17.8]} 47... Bc5 {[%clk 0:00:05.1]} 48. Kg2
{[%clk 0:00:17.7]} 48... Bd4 {[%clk 0:00:04.7]} 49. Kf3 {[%clk 0:00:17.8]} 49...
Bc5 {[%clk 0:00:05]} 50. Kg3 {[%clk 0:00:18]} 50... Bd4 {[%clk 0:00:05.2]} 51.
Kg2 {[%clk 0:00:17.5]} 51... Bc5 {[%clk 0:00:05.3]} 52. Kf3 {[%clk 0:00:18.4]}
52... Bd4 {[%clk 0:00:05.4]} 53. Ke2 {[%clk 0:00:18.8]} 53... Bc5 {[%clk
0:00:05.7]} 54. Bh3 {[%clk 0:00:18.7]} 54... Bd4 {[%clk 0:00:05.9]} 55. Bg2
{[%clk 0:00:19.2]} 55... Bc5 {[%clk 0:00:05.8]} 56. Bf3 {[%clk 0:00:19.8]} 56...
Kg6 {[%clk 0:00:06.3]} 57. Kd3 {[%clk 0:00:17.9]} 57... Be7 {[%clk 0:00:06.6]}
58. Kc3 {[%clk 0:00:17.4]} 58... Bxh4 {[%clk 0:00:06.5]} 59. c5 {[%clk
0:00:17.8]} 59... Bd8 {[%clk 0:00:06.1]} 60. Kc4 {[%clk 0:00:17.5]} 60... h4
{[%clk 0:00:05.8]} 61. Bg4 {[%clk 0:00:17.2]} 61... Kg5 {[%clk 0:00:05.3]} 62.
Bf5 {[%clk 0:00:17.2]} 62... Kf4 {[%clk 0:00:05.6]} 63. Kd5 {[%clk 0:00:17.7]}
63... Ba5 {[%clk 0:00:05.7]} 64. c6 {[%clk 0:00:16.7]} 64... Bb6 {[%clk
0:00:06]} 65. Bd7 {[%clk 0:00:11]} 65... Ba5 {[%clk 0:00:05.9]} 66. Bh3 {[%clk
0:00:10.5]} 66... Bb6 {[%clk 0:00:06.1]} 67. Be6 {[%clk 0:00:09.5]} 67... Ba5
{[%clk 0:00:06.3]} 68. Bf5 {[%clk 0:00:10]} 68... Bb6 {[%clk 0:00:06.5]} 69. Kd6
{[%clk 0:00:10.7]} 69... Ba5 {[%clk 0:00:06.3]} 70. Kc5 {[%clk 0:00:08.6]} 70...
Bc7 {[%clk 0:00:06.2]} 71. Kd5 {[%clk 0:00:08.7]} 71... Bb6 {[%clk 0:00:06.4]}
1/2-1/2